fUSD/lending_fUSD_20250923
["ID","MTS","AMOUNT","RATE_DAILY","PERIOD"]
[387119912,1758586252097,-400.0,0.00020817,2]
[387119913,1758586252107,-400.0,0.00020817,2]
[387119914,1758586252117,-400.0,0.00020817,2]
[387119915,1758586252126,-400.0,0.00020817,2]
[387119916,1758586252135,-400.0,0.00020817,2]
[387119917,1758586252145,-1472.77,0.00020817,2]
[387119918,1758586252155,-400.0,0.00020817,2]
[387119919,1758586252164,-400.0,0.00020817,2]
[387119920,1758586252174,-400.0,0.00020817,2]
[387119921,1758586252184,-1000.0,0.00020817,2]
[387119922,1758586252194,-400.0,0.00020817,2]
[387119923,1758586252203,-400.0,0.00020817,2]
[387119924,1758586252213,-400.0,0.00020817,2]
[387119925,1758586252222,-400.0,0.00020817,2]
[387119926,1758586252232,-400.0,0.00020817,2]
[387119927,1758586252242,-606.58,0.00020817,2]
[387119928,1758586252251,-400.0,0.00020817,2]
[387119929,1758586252261,-400.0,0.00020817,2]
[387119930,1758586252270,-400.0,0.00020817,2]
[387119931,1758586252279,-400.0,0.00020817,2]
[387119932,1758586252288,-400.0,0.00020817,2]
[387119933,1758586252298,-400.0,0.00020817,2]
[387119934,1758586252307,-400.0,0.00020817,2]
[387119935,1758586252316,-400.0,0.00020817,2]
[387119936,1758586252326,-400.0,0.00020817,2]
[387119937,1758586252335,-400.0,0.00020817,2]
[387119938,1758586252344,-400.0,0.00020817,2]
[387119939,1758586252354,-400.0,0.00020817,2]
[387119940,1758586252364,-400.0,0.00020817,2]
[387119941,1758586252374,-400.0,0.00020817,2]
[387119942,1758586252385,-1575.87,0.00020817,2]
[387119943,1758586252396,-400.0,0.00020817,2]
[387119944,1758586252406,-300.0,0.00020817,2]
[387119945,1758586252417,-300.0,0.00020817,2]
[387119946,1758586252428,-400.0,0.00020818,2]
[387119947,1758586252437,-400.0,0.00020818,2]
[387119948,1758586252447,-400.0,0.00020818,2]
[387119949,1758586252458,-400.0,0.00020818,2]
[387119950,1758586252467,-400.0,0.00020818,2]
[387119951,1758586252479,-400.0,0.00020818,2]
[387119952,1758586252489,-400.0,0.00020818,2]
[387119953,1758586252499,-400.0,0.00020818,2]
[387119954,1758586252508,-400.0,0.00020818,2]
[387119955,1758586252519,-400.0,0.00020818,2]
[387119956,1758586252528,-400.0,0.00020818,2]
[387119957,1758586252538,-400.0,0.00020818,2]
[387119958,1758586252550,-400.0,0.00020818,2]
[387119959,1758586252560,-400.0,0.00020818,2]
[387119960,1758586252570,-533.53,0.00020818,2]
[387119961,1758586252579,-400.0,0.00020818,2]
[387119962,1758586252588,-400.0,0.00020818,2]
[387119963,1758586252597,-400.0,0.00020818,2]
[387119964,1758586252607,-400.0,0.00020818,2]
[387119965,1758586252616,-400.0,0.00020818,2]
[387119966,1758586252626,-400.0,0.00020818,2]
[387119967,1758586252635,-400.0,0.00020818,2]
[387119968,1758586252644,-400.0,0.00020818,2]
[387119969,1758586252653,-400.0,0.00020818,2]
[387119970,1758586252663,-400.0,0.00020818,2]
[387119971,1758586252673,-400.0,0.00020818,2]
[387119972,1758586252682,-328.64727283,0.00020818,2]
[387119973,1758586253190,-71.35272717,0.00020818,2]
[387119974,1758586253200,-427.54,0.00020818,2]
[387119975,1758586253210,-400.0,0.00020818,2]
[387119976,1758586253219,-500.0,0.00020818,2]
[387119977,1758586253229,-400.0,0.00020818,2]
[387119978,1758586253239,-500.0,0.00020818,2]
[387119979,1758586253249,-400.62,0.00020818,2]
[387119980,1758586253258,-223.63797222,0.00020818,2]
[387119981,1758586253268,-401.1984018,0.00020818,2]
[387119982,1758586253277,-400.0,0.00020818,2]
[387119983,1758586253287,-401.39033456,0.00020818,2]
[387119984,1758586253296,-400.0,0.00020818,2]
[387119985,1758586253306,-400.0,0.00020818,2]
[387119986,1758586253315,-400.0,0.00020818,2]
[387119987,1758586253325,-400.0,0.00020818,2]
[387119988,1758586253334,-400.0,0.00020818,2]
[387119989,1758586253343,-400.0,0.00020818,2]
[387119990,1758586253353,-400.0,0.00020818,2]
[387119991,1758586253362,-400.0,0.00020818,2]
[387119992,1758586253372,-400.0,0.00020818,2]
[387119993,1758586253382,-400.0,0.00020818,2]
[387119994,1758586253391,-400.0,0.00020818,2]
[387119995,1758586253401,-538.19,0.00020818,2]
[387119996,1758586253410,-400.0,0.00020818,2]
[387119997,1758586253419,-400.0,0.00020818,2]
[387119998,1758586253429,-400.0,0.00020818,2]
[387119999,1758586253438,-400.0,0.00020818,2]
[387120000,1758586253447,-400.0,0.00020818,2]
[387120001,1758586253456,-400.0,0.00020818,2]
[387120002,1758586253466,-400.0,0.00020818,2]
[387120003,1758586253476,-492.64,0.00020818,2]
[387120004,1758586253486,-400.0,0.00020818,2]
[387120005,1758586253495,-475.71,0.00020818,2]
[387120006,1758586253504,-400.0,0.00020818,2]
[387120007,1758586253513,-400.0,0.00020818,2]
[387120008,1758586253522,-488.34,0.00020818,2]
[387120009,1758586253532,-400.0,0.00020818,2]
[387120010,1758586253541,-400.0,0.00020818,2]
[387120011,1758586253552,-400.0,0.00020818,2]
[387120012,1758586253561,-400.0,0.00020818,2]
[387120013,1758586253570,-400.0,0.00020818,2]
[387120014,1758586253580,-400.0,0.00020818,2]
[387120015,1758586253589,-510.41,0.00020818,2]
[387120016,1758586253598,-400.0,0.00020818,2]
[387120017,1758586253608,-400.0,0.00020818,2]
[387120018,1758586253618,-400.0,0.00020818,2]
[387120019,1758586253627,-400.0,0.00020818,2]
[387120020,1758586253636,-400.0,0.00020818,2]
[387120021,1758586253645,-400.0,0.00020818,2]
[387120022,1758586253654,-400.0,0.00020818,2]
[387120023,1758586253664,-400.0,0.00020818,2]
[387120024,1758586253674,-400.0,0.00020818,2]
[387120025,1758586253876,-500.0,0.00020818,2]
[387120026,1758586253885,-400.0,0.00020818,2]
[387120027,1758586253894,-400.0,0.00020818,2]
[387120028,1758586253903,-443.62,0.00020818,2]
[387120029,1758586253912,-400.0,0.00020818,2]
[387120030,1758586253921,-281.32172998,0.00020818,2]
[387120031,1758586253936,-118.67827002,0.00020818,2]
[387120032,1758586253945,-400.0,0.00020818,2]
[387120033,1758586253954,-57.15172998,0.00020818,2]
[387120034,1758586254051,-342.84827002,0.00020818,2]
[387120035,1758586254061,-400.0,0.00020818,2]
[387120036,1758586254071,-400.0,0.00020818,2]
[387120037,1758586254080,-400.0,0.00020818,2]
[387120038,1758586254089,-500.0,0.00020818,2]
[387120039,1758586254099,-400.0,0.00020818,2]
[387120040,1758586254108,-400.0,0.00020818,2]
[387120041,1758586254118,-487.14,0.00020818,2]
[387120042,1758586254128,-400.0,0.00020818,2]
[387120043,1758586254137,-468.21,0.00020818,2]
[387120044,1758586254147,-400.74,0.00020818,2]
[387120045,1758586254156,-420.84233417,0.00020818,2]
[387120046,1758586254166,-434.16,0.00020818,2]
[387120047,1758586254176,-138.95241322,0.00020818,2]
[387120048,1758586254863,-573.606723,0.00020816,2]
[387120049,1758586254872,-657.29,0.00020816,2]
[387120050,1758586254881,-400.0,0.00020816,2]
[387120051,1758586254891,-400.0,0.00020816,2]
[387120052,1758586254900,-369.103277,0.00020816,2]
[387120053,1758586254948,-30.896723,0.00020816,2]
[387120054,1758586254958,-236.253277,0.00020816,2]
[387120055,1758586255544,-12.022284,0.00020816,2]
[387120056,1758586256164,-151.724439,0.00020816,2]
[387120057,1758586256173,-400.0,0.00020816,2]
[387120058,1758586256183,-390.850884,0.00020816,2]
[387120059,1758586256193,-400.0,0.00020816,2]
[387120060,1758586256202,-229.57317882,0.00020816,2]
[387120061,1758586323676,250.0,0.00015,2]
[387120062,1758586380819,160.0,0.000301,120]
[387120063,1758586653561,150.0,0.000195,5]
[387120064,1758586693790,300.0,0.00030136,120]
[387120065,1758586719455,155.0,0.00030136,120]
[387120067,1758586747980,510.85521726,0.00019,5]
[387120068,1758586795835,-277.223911,0.00018984,2]
[387120070,1758586905742,156.98,9.629e-05,2]
[387120072,1758587105021,150.0,0.0001919,7]
[387120073,1758587127963,150.0,0.00019056,20]
[387120074,1758587134982,-214.02494522,0.00018746,2]
[387120075,1758587139007,-152.0,0.00018708,2]
[387120076,1758587156615,4950.12513971,0.00018,2]
[387120081,1758587318312,1204.29384902,0.0001421,7]
[387120083,1758587347697,252.84,0.00018691,2]
[387120084,1758587364579,150.0,0.00018614,20]
[387120096,1758587432327,-48.0,0.00018708,2]
[387120097,1758587432336,-195.0,0.00018718,2]
[387120099,1758587432347,-300.0,0.00018727,2]
[387120101,1758587432357,-182.04839094,0.00018727,3]
[387120104,1758587432398,-1817.95160906,0.00018727,3]
[387120106,1758587432409,-51.74505478,0.00018746,2]
[387120107,1758587432418,-195.0,0.00018843,2]
[387120108,1758587432428,-265.02205888,0.00018987,2]
[387120109,1758587432438,-1923.03015856,0.00018987,3]
[387120110,1758587432448,-187.68167101,0.00019046,2]
[387120111,1758587432457,-151.0,0.00019178,2]
[387120112,1758587432466,-1147.0,0.00019258,2]
[387120113,1758587432476,-1200.0,0.00019258,2]
[387120114,1758587432485,-249.0,0.00019351,2]
[387120115,1758587432495,-300.0,0.00019351,2]
[387120116,1758587432504,-300.0,0.00019351,2]
[387120117,1758587432514,-300.0,0.00019351,2]
[387120118,1758587432524,-493.6022,0.00019352,2]
[387120119,1758587432533,-1000.0,0.00019358,2]
[387120120,1758587432543,-519.03,0.00019415,2]
[387120121,1758587432552,-800.0,0.00019452,2]
[387120122,1758587432562,-150.0,0.00019455,2]
[387120123,1758587432572,-150.0,0.00019455,2]
[387120124,1758587432584,-636.0,0.00019513,2]
[387120125,1758587432594,-546.29866102,0.00019513,2]
[387120126,1758587432604,-248.2412668,0.00019513,2]
[387120127,1758587432613,-504.0529272,0.00019513,2]
[387120128,1758587432622,-500.0,0.00019513,2]
[387120129,1758587432633,-500.0,0.00019513,2]
[387120130,1758587432643,-6645.23242799,0.00019518,2]
[387120131,1758587432652,-252.84,0.00019626,2]
[387120132,1758587432663,-151.0,0.00019634,2]
[387120133,1758587432672,-151.0,0.00019642,2]
[387120134,1758587432682,-151.0,0.00019655,2]
[387120135,1758587432691,-666.0,0.00019684,3]
[387120136,1758587432701,-200.0,0.00019778,2]
[387120137,1758587432710,-151.0,0.00019778,2]
[387120139,1758587432720,-151.0,0.00019778,2]
[387120141,1758587432729,-151.0,0.00019778,2]
[387120143,1758587432739,-151.0,0.00019778,2]
[387120145,1758587432748,-200.0,0.00019778,2]
[387120147,1758587432757,-151.0,0.00019778,2]
[387120149,1758587432767,-249.59348915,0.00019778,2]
[387120151,1758587432776,-200.0,0.00019778,2]
[387120153,1758587432786,-541.70048599,0.00019778,2]
[387120155,1758587432796,-500.0,0.00019778,2]
[387120156,1758587432806,-500.0,0.00019778,2]
[387120158,1758587432815,-500.0,0.00019778,2]
[387120160,1758587432824,-500.0,0.00019778,2]
[387120162,1758587432835,-500.0,0.00019778,2]
[387120164,1758587432844,-500.0,0.00019778,2]
[387120166,1758587432853,-500.0,0.00019778,2]
[387120168,1758587432863,-500.0,0.00019778,2]
[387120170,1758587432873,-500.0,0.00019778,2]
[387120172,1758587432883,-256.51962417,0.00019778,2]
[387120175,1758587432893,-199.0,0.00019791,2]
[387120178,1758587432903,-155.0,0.00019791,2]
[387120181,1758587432912,-150.0,0.000199,2]
[387120184,1758587432922,-400.0,0.000199,7]
[387120187,1758587432931,-316.24685376,0.000199,2]
[387120189,1758587432941,-1735.1112609,0.000199,2]
[387120191,1758587432950,-150.0,0.00019915,2]
[387120193,1758587432959,-500.0,0.00019915,2]
[387120195,1758587432969,-500.0,0.00019915,2]
[387120197,1758587432979,-500.0,0.00019915,2]
[387120199,1758587432988,-150.0,0.00019915,2]
[387120201,1758587432999,-2458.0,0.00019915,2]
[387120203,1758587433008,-150.0,0.00019915,2]
[387120205,1758587433018,-150.0,0.00019915,2]
[387120206,1758587433027,-700.0,0.00019915,2]
[387120208,1758587433037,-150.0,0.00019915,2]
[387120210,1758587433047,-169.61,0.00019915,2]
[387120212,1758587433057,-500.0,0.00019973,2]
[387120214,1758587433067,-500.0,0.00019973,2]
[387120216,1758587433077,-222.36443682,0.00019973,2]
[387120218,1758587433087,-500.0,0.00019973,2]
[387120220,1758587433096,-500.0,0.00019973,2]
[387120222,1758587433106,-501.81867404,0.00019973,2]
[387120224,1758587433116,-501.30922195,0.00019973,2]
[387120226,1758587433126,-503.93132093,0.00019973,2]
[387120229,1758587433136,-500.0,0.00019973,2]
[387120230,1758587433145,-500.0,0.00019973,2]
[387120233,1758587433155,-368.21807322,0.00019973,2]
[387120234,1758587433165,-500.0,0.00019973,2]
[387120237,1758587433176,-500.0,0.00019973,2]
[387120239,1758587433188,-500.0,0.00019973,2]
[387120241,1758587433199,-500.0,0.00019973,2]
[387120242,1758587433208,-507.44982304,0.00019973,2]
[387120244,1758587433218,-500.0,0.00019973,2]
[387120246,1758587433228,-500.0,0.00019973,2]
[387120248,1758587433237,-500.0,0.00019973,2]
[387120250,1758587433247,-565.39030056,0.00019973,2]
[387120252,1758587433257,-500.0,0.00019973,2]
[387120254,1758587433266,-184.88592839,0.00019973,2]
[387120256,1758587433276,-500.0,0.00019973,2]
[387120258,1758587433285,-162.9101545,0.00019973,2]
[387120260,1758587433296,-500.0,0.00019973,2]
[387120262,1758587433306,-500.0,0.00019973,2]
[387120264,1758587433316,-170.39,0.0001999,2]
[387120266,1758587433325,-650.9,0.0001999,2]
[387120268,1758587433335,-650.9,0.0001999,2]
[387120270,1758587433345,-151.0,0.00019997,2]
[387120272,1758587433355,-151.0,0.00019997,2]
[387120274,1758587433366,-400.0,0.00019999,2]
[387120276,1758587433375,-400.0,0.00019999,2]
[387120278,1758587433384,-400.0,0.00019999,2]
[387120280,1758587433396,-400.0,0.00019999,2]
[387120282,1758587433406,-400.0,0.00019999,2]
[387120284,1758587433416,-400.0,0.00019999,2]
[387120286,1758587433427,-400.0,0.00019999,2]
[387120289,1758587433437,-400.0,0.00019999,2]
[387120291,1758587433447,-400.0,0.00019999,2]
[387120293,1758587433457,-400.0,0.00019999,2]
[387120295,1758587433468,-400.0,0.00019999,2]
[387120297,1758587433477,-400.0,0.00019999,2]
[387120299,1758587433486,-400.0,0.00019999,2]
[387120301,1758587433497,-604.35,0.00019999,2]
[387120303,1758587433506,-400.0,0.00019999,2]
[387120305,1758587433517,-400.0,0.00019999,2]
[387120307,1758587433527,-400.0,0.00019999,2]
[387120309,1758587433538,-1278.13,0.00019999,2]
[387120311,1758587433549,-400.0,0.00019999,2]
[387120313,1758587433559,-400.0,0.00019999,2]
[387120315,1758587433569,-400.0,0.00019999,2]
[387120317,1758587433579,-400.0,0.00019999,2]
[387120319,1758587433594,-890.26,0.00019999,2]
[387120321,1758587433605,-400.0,0.00019999,2]
[387120323,1758587433617,-400.0,0.00019999,2]
[387120325,1758587433627,-400.0,0.00019999,2]
[387120327,1758587433638,-1116.16,0.00019999,2]
[387120329,1758587433648,-400.0,0.00019999,2]
[387120331,1758587433658,-2689.92,0.00019999,2]
[387120333,1758587433668,-400.0,0.00019999,2]
[387120335,1758587433678,-753.08,0.00019999,2]
[387120337,1758587433688,-400.0,0.00019999,2]
[387120339,1758587433698,-574.78,0.00019999,2]
[387120341,1758587433708,-400.0,0.00019999,2]
[387120343,1758587433717,-872.01,0.00019999,2]
[387120345,1758587433727,-400.0,0.00019999,2]
[387120347,1758587433738,-400.0,0.00019999,2]
[387120349,1758587433748,-400.0,0.00019999,2]
[387120351,1758587433758,-400.0,0.00019999,2]
[387120353,1758587433767,-1515.26,0.00019999,2]
[387120355,1758587433777,-400.0,0.00019999,2]
[387120357,1758587433787,-400.0,0.00019999,2]
[387120359,1758587433798,-807.5,0.00019999,2]
[387120361,1758587433807,-1397.73,0.00019999,2]
[387120363,1758587433817,-400.0,0.00019999,2]
[387120365,1758587433826,-114.37332868,0.00019999,2]
[387120367,1758587433840,-285.62667132,0.00019999,2]
[387120369,1758587433851,-400.0,0.00019999,2]
[387120371,1758587433860,-400.87,0.00019999,2]
[387120373,1758587433870,-400.0,0.00019999,2]
[387120375,1758587433879,-400.0,0.00019999,2]
[387120377,1758587433889,-400.0,0.00019999,2]
[387120379,1758587433898,-400.0,0.00019999,2]
[387120381,1758587433908,-400.0,0.00019999,2]
[387120383,1758587433917,-500.0,0.00019999,2]
[387120385,1758587433927,-400.0,0.00019999,2]
[387120387,1758587433937,-2461.12,0.00019999,2]
[387120389,1758587433948,-400.0,0.00019999,2]
[387120391,1758587433958,-400.0,0.00019999,2]
[387120393,1758587433967,-3343.81,0.00019999,2]
[387120395,1758587433976,-203.85838018,0.00019999,2]
[387120397,1758587433986,-400.0,0.00019999,2]
[387120399,1758587433996,-400.0,0.00019999,2]
[387120401,1758587434006,-400.0,0.00019999,2]
[387120403,1758587434016,-400.0,0.00019999,2]
[387120405,1758587434026,-400.0,0.00019999,2]
[387120407,1758587434035,-400.0,0.00019999,2]
[387120409,1758587434045,-427.49,0.00019999,2]
[387120411,1758587434057,-400.0,0.00019999,2]
[387120413,1758587434066,-503.6,0.00019999,2]
[387120415,1758587434076,-449.81,0.00019999,2]
[387120417,1758587434086,-400.0,0.00019999,2]
[387120419,1758587434096,-534.20432083,0.00019999,2]
[387120421,1758587434105,-400.0,0.00019999,2]
[387120423,1758587434115,-400.0,0.00019999,2]
[387120426,1758587434125,-400.0,0.00019999,2]
[387120427,1758587434136,-400.0,0.00019999,2]
[387120429,1758587434145,-400.0,0.00019999,2]
[387120432,1758587434155,-400.0,0.00019999,2]
[387120434,1758587434165,-400.0,0.00019999,2]
[387120436,1758587434174,-400.0,0.00019999,2]
[387120437,1758587434183,-480.29472423,0.00019999,2]
[387120439,1758587434193,-210.72237729,0.00019999,2]
[387120441,1758587434202,-170.76850042,0.00019999,2]
[387120443,1758587434212,-1871.3308267,0.0002,2]
[387120445,1758587434221,-5000.0,0.0002,2]
[387120447,1758587434233,-9480.28434106,0.0002,2]
[387120449,1758587434245,-294.84302077,0.0002,2]
[387120452,1758587434256,-1734.97613003,0.0002,2]
[387120454,1758587434268,-1391.7294,0.0002,2]
[387120459,1758587434312,-500.0,0.00019513,2]
[387120461,1758587434322,-186.66655567,0.00019513,2]
[387120463,1758587434332,-166.25063049,0.0002,2]
[387120465,1758587434343,-6725.2895241,0.0002,2]
[387120470,1758587434373,-500.0,0.00019513,2]
[387120472,1758587434385,-500.0,0.00019513,2]
[387120474,1758587434395,-756227.54697925,0.0002,2]
[387120476,1758587434404,-91341.53406364,0.0002,2]
[387120478,1758587434414,-2198.63987271,0.0002,14]
[387120480,1758587434424,-864.05827832,0.00020044,2]
[387120482,1758587434433,-5000.0,0.00020085,2]
[387120484,1758587434442,-8733.57,0.00020144,2]
[387120486,1758587434452,-150.0,0.00020175,4]
[387120488,1758587434463,-150.0,0.00020189,2]
[387120490,1758587434474,-500.0,0.00020189,2]
[387120492,1758587434483,-500.0,0.00020189,2]
[387120494,1758587434492,-500.0,0.00020189,2]
[387120496,1758587434502,-150.0,0.00020189,2]
[387120498,1758587434512,-2458.0,0.00020189,2]
[387120500,1758587434521,-150.0,0.00020189,2]
[387120502,1758587434531,-150.0,0.00020189,2]
[387120504,1758587434541,-700.0,0.00020189,2]
[387120506,1758587434552,-400.0,0.00020273,2]
[387120508,1758587434561,-400.0,0.00020273,2]
[387120510,1758587434570,-400.0,0.00020273,2]
[387120512,1758587434579,-400.0,0.00020273,2]
[387120534,1758587434795,-400.0,0.00020273,2]
[387120536,1758587434808,-400.0,0.00020273,2]
[387120538,1758587434817,-400.0,0.00020273,2]
[387120540,1758587434827,-400.0,0.00020273,2]
[387120542,1758587434837,-400.0,0.00020273,2]
[387120544,1758587434847,-400.0,0.00020273,2]
[387120545,1758587434856,-400.0,0.00020273,2]
[387120546,1758587434865,-400.0,0.00020273,2]
[387120547,1758587434874,-604.35,0.00020273,2]
[387120548,1758587434884,-400.0,0.00020273,2]
[387120549,1758587434897,-400.0,0.00020273,2]
[387120550,1758587434906,-1278.13,0.00020273,2]
[387120551,1758587434915,-400.0,0.00020273,2]
[387120552,1758587434924,-400.0,0.00020273,2]
[387120553,1758587434933,-400.0,0.00020273,2]
[387120554,1758587434942,-400.0,0.00020273,2]
[387120555,1758587434950,-890.26,0.00020273,2]
[387120557,1758587434960,-400.0,0.00020273,2]
[387120559,1758587434969,-400.0,0.00020273,2]
[387120561,1758587434979,-400.0,0.00020273,2]
[387120563,1758587434988,-1116.16,0.00020273,2]
[387120565,1758587434997,-400.0,0.00020273,2]
[387120566,1758587435006,-2689.92,0.00020273,2]
[387120569,1758587435016,-400.0,0.00020273,2]
[387120571,1758587435026,-753.08,0.00020273,2]
[387120573,1758587435035,-400.0,0.00020273,2]
[387120575,1758587435045,-574.78,0.00020273,2]
[387120577,1758587435055,-400.0,0.00020273,2]
[387120579,1758587435064,-872.01,0.00020273,2]
[387120581,1758587435073,-400.0,0.00020273,2]
[387120583,1758587435083,-400.0,0.00020273,2]
[387120585,1758587435092,-400.0,0.00020273,2]
[387120587,1758587435101,-400.0,0.00020273,2]
[387120589,1758587435110,-1515.26,0.00020273,2]
[387120591,1758587435120,-400.0,0.00020273,2]
[387120593,1758587435129,-400.0,0.00020273,2]
[387120595,1758587435138,-807.5,0.00020273,2]
[387120597,1758587435148,-1397.73,0.00020273,2]
[387120599,1758587435158,-400.0,0.00020273,2]
[387120601,1758587435167,-400.0,0.00020273,2]
[387120603,1758587435177,-400.0,0.00020273,2]
[387120605,1758587435186,-400.87,0.00020273,2]
[387120607,1758587435195,-400.0,0.00020273,2]
[387120609,1758587435205,-400.0,0.00020273,2]
[387120611,1758587435215,-400.0,0.00020273,2]
[387120613,1758587435224,-400.0,0.00020273,2]
[387120615,1758587435234,-400.0,0.00020273,2]
[387120617,1758587435243,-500.0,0.00020273,2]
[387120619,1758587435252,-400.0,0.00020273,2]
[387120621,1758587435261,-2461.12,0.00020273,2]
[387120623,1758587435271,-400.0,0.00020273,2]
[387120625,1758587435280,-400.0,0.00020273,2]
[387120627,1758587435290,-3343.81,0.00020273,2]
[387120629,1758587435299,-400.0,0.00020273,2]
[387120631,1758587435309,-400.0,0.00020273,2]
[387120633,1758587435319,-400.0,0.00020273,2]
[387120635,1758587435328,-400.0,0.00020273,2]
[387120637,1758587435338,-400.0,0.00020273,2]
[387120639,1758587435347,-427.49,0.00020273,2]
[387120641,1758587435356,-400.0,0.00020273,2]
[387120643,1758587435366,-503.6,0.00020273,2]
[387120645,1758587435375,-449.81,0.00020273,2]
[387120647,1758587435384,-400.0,0.00020273,2]
[387120649,1758587435394,-400.0,0.00020273,2]
[387120651,1758587435403,-400.0,0.00020273,2]
[387120653,1758587435413,-400.0,0.00020273,2]
[387120655,1758587435422,-400.0,0.00020273,2]
[387120657,1758587435432,-400.0,0.00020273,2]
[387120659,1758587435441,-400.0,0.00020273,2]
[387120661,1758587435451,-400.0,0.00020273,2]
[387120663,1758587435461,-400.0,0.00020273,2]
[387120665,1758587435470,-519.08,0.00020294,2]
[387120667,1758587435480,-1735.11126088,0.00020308,2]
[387120669,1758587435490,-151.43,0.00020315,2]
[387120671,1758587435499,-4268.2,0.00020354,2]
[387120673,1758587435508,-516.58280827,0.00020377,2]
[387120675,1758587435518,-250.0,0.00020463,2]
[387120677,1758587435527,-500.0,0.00020463,2]
[387120679,1758587435536,-500.0,0.00020463,2]
[387120681,1758587435546,-500.0,0.00020463,2]
[387120683,1758587435557,-150.0,0.00020463,2]
[387120685,1758587435566,-2458.0,0.00020463,2]
[387120687,1758587435576,-200.0,0.00020463,2]
[387120689,1758587435585,-150.0,0.00020463,2]
[387120691,1758587435595,-700.0,0.00020463,2]
[387120693,1758587435604,-2000.0,0.000205,2]
[387120695,1758587435614,-864.05827832,0.00020502,2]
[387120697,1758587435623,-316.24685367,0.00020508,2]
[387120699,1758587435633,-10822.14427565,0.00020516,2]
[387120701,1758587435642,-300.0,0.00020521,2]
[387120703,1758587435652,-1000.0,0.00020521,2]
[387120705,1758587435661,-1000.0,0.00020521,2]
[387120707,1758587435671,-1000.0,0.00020521,2]
[387120709,1758587435681,-1000.0,0.00020521,2]
[387120711,1758587435691,-1000.0,0.00020521,2]
[387120713,1758587435701,-500.0,0.00020521,2]
[387120715,1758587435711,-500.0,0.00020521,2]
[387120717,1758587435720,-500.0,0.00020521,2]
[387120719,1758587435730,-237.96102449,0.00020521,2]
[387120720,1758587435747,-363.03316529,0.00020521,2]
[387120722,1758587435756,-1000.0,0.00020521,2]
[387120724,1758587435766,-2705.53,0.00020545,2]
[387120726,1758587435775,-400.0,0.00020547,2]
[387120728,1758587435784,-400.0,0.00020547,2]
[387120730,1758587435793,-400.0,0.00020547,2]
[387120732,1758587435803,-400.0,0.00020547,2]
[387120734,1758587435812,-400.0,0.00020547,2]
[387120736,1758587435823,-400.0,0.00020547,2]
[387120739,1758587435835,-400.0,0.00020547,2]
[387120740,1758587435845,-400.0,0.00020547,2]
[387120743,1758587435856,-400.0,0.00020547,2]
[387120745,1758587435866,-400.0,0.00020547,2]
[387120747,1758587435876,-400.0,0.00020547,2]
[387120749,1758587435885,-400.0,0.00020547,2]
[387120751,1758587435895,-604.35,0.00020547,2]
[387120753,1758587435904,-400.0,0.00020547,2]